Cogmind - Beta 16.1 @@@ ROGUE MODE // 2026.04.03 @ 23:27:50 Player: Zaros426 Result: Destroyed by H-55 Commando with Gauss Rifle Performance ------------- Evolutions (3) 1500 Regions Visited (10) 2000 Robots Destroyed (213) 1065 Value Destroyed (5876) 5876 Prototype IDs (38) 760 Alien Tech Used (0) 0 Bonus (2232) 2232 TOTAL SCORE: 13433 Bonus ------- High Alert Combat Kills 125 Follower Combat Kills 207 Entered Garrisons 400 Used RIF Installer 1500 Cogmind --------- Core Integrity 0/700 Matter 185/300 Energy 99/100 System Corruption 5% Temperature Cool (0) Movement Core (50) Location -7/Garrison Parts ------- > --- POWER (1) -------- (None) > --- PROPULSION (4) --- (None) > --- UTILITY (6) ------ Advanced Targeting Computer Relay Coupler [NC] (24) Relay Coupler [Grunt] (31) Relay Coupler [Specialist] (2) > --- WEAPON (2) ------- (None) > --- INVENTORY (5) ---- Structural Scanner Makeshift Terrain Scanner Cloak of Protection Improved Datajack Gamma Bomb Trap Peak State ------------ > --- POWER ------------ Reinforced Deuterium Engine > --- PROPULSION ------- Armored Treads Armored Treads Armored Huge Wheel > --- UTILITY ---------- Huge Storage Unit Advanced Targeting Computer Hardened Heavy Armor Plating Hardlight Generator Relay Coupler [Grunt] > --- WEAPON ----------- Lightning Gun Makeshift Axe > --- INVENTORY -------- Medium Treads Medium Treads Coolant Injector High-capacity Storage Unit High-capacity Battery Structural Scanner Makeshift Terrain Scanner Makeshift Terrain Scan Processor Seismic Detector Makeshift Salvage Targeting Computer Advanced ECM Suite Advanced ECM Suite Cloak of Protection Relay Coupler [Grunt] Relay Coupler [Brawler] Shock Rifle Ion Cannon Mini Grenade Launcher Improved Datajack Remote Datajack Tesla Bomb Trap Gamma Bomb Trap Gamma Bomb Trap Gamma Bomb Trap Gamma Bomb Trap [Rating: 51] Favorites ----------- Power Heavy Ion Engine Engine Heavy Ion Engine Power Core Light Nuclear Core Propulsion Armored Treads Treads Armored Treads Wheel Armored Huge Wheel Flight Unit Improved Flight Unit Utility High-capacity Storage Unit Device Seismic Detector Storage High-capacity Storage Unit Processor Advanced Targeting Computer Hackware Hacking Suite Protection Improved Medium Armor Plating Weapon Minigun Energy Gun Beam Rifle Energy Cannon Ion Cannon Ballistic Gun Minigun Launcher Grenade Launcher Special Weapon Remote Datajack Impact Weapon Maul Slashing Weapon Makeshift Axe Special Melee Weapon Datajack Build | -11 -10 -10 -9 -9 -9 -8 -8 -8 -7 -7 ------- Run | Yrd Mat Min Mat Min Exi Min Mat Gar Fac Gar Slots Evolved 6 | . . . 2 . . . 2 . 2 . Power . | . . . . . . . . . . . Propulsion 2 | . . . 1 . . . 1 . . . Utility 4 | . . . 1 . . . 1 . 2 . Weapon . | . . . . . . . . . . . Parts Attached 108 | 6 12 7 20 2 1 6 18 12 8 16 Power 12 | 1 1 1 2 . . 2 1 3 1 . Engine 7 | 1 1 1 2 . . 1 . . 1 . Core 5 | . . . . . . 1 1 3 . . Reactor . | . . . . . . . . . . . Propulsion 29 | 2 4 2 8 . . 1 2 2 1 7 Treads 25 | 2 3 2 6 . . 1 2 2 . 7 Leg . | . . . . . . . . . . . Wheel 3 | . 1 . 1 . . . . . 1 . Hover . | . . . . . . . . . . . Flight 1 | . . . 1 . . . . . . . Utility 34 | 2 3 . 2 1 . 2 8 5 4 7 Device 8 | 1 . . . . . 1 3 1 1 1 Storage 5 | 1 2 . . . . . . 1 . 1 Processor 4 | . 1 . . 1 . . . 1 1 . Hackware 12 | . . . 2 . . . 2 2 1 5 Protection 5 | . . . . . . 1 3 . 1 . Artifact . | . . . . . . . . . . . Weapon 33 | 1 4 4 8 1 1 1 7 2 2 2 Energy Gun 11 | . 4 1 2 . . . 2 1 1 . Energy Cannon 9 | . . 1 3 . . . 4 . 1 . Ballistic Gun 6 | 1 . 1 2 . . . 1 . . 1 Ballistic Cannon . | . . . . . . . . . . . Launcher 2 | . . 1 1 . . . . . . . Special Weapon 1 | . . . . . . . . . . 1 Impact Weapon 1 | . . . . 1 . . . . . . Slashing Weapon 1 | . . . . . . 1 . . . . Piercing Weapon . | . . . . . . . . . . . Special Melee Weapon 2 | . . . . . 1 . . 1 . . Unidentified Prototypes 9 | . . . 7 . . . 2 . . . Parts Lost 41 | . 3 4 . 1 . 2 5 6 3 17 Power 4 | . . 1 . . . . 1 1 . 1 Propulsion 16 | . 1 2 . . . 1 1 2 1 8 Utility 10 | . 1 . . . . . 2 3 . 4 Weapon 11 | . 1 1 . 1 . 1 1 . 2 4 Highest Loss Streak 14 | . 3 2 . 1 . 2 3 6 3 14 To Critical Strikes . | . . . . . . . . . . . Average Backups 17 | 2 11 16 19 19 19 18 19 19 18 19 Power . | . . . . . . . . . . . Propulsion 2 | . 1 2 2 3 2 1 2 1 . 2 Utility 11 | . 7 9 11 11 12 13 13 13 12 14 Weapon 3 | 2 2 3 3 3 3 2 3 3 2 1 Tool/Special . | . . . . . . . . . . . Unused Backups 34 | . 5 3 8 . 2 1 3 1 1 10 Power . | . . . . . . . . . . . Propulsion 5 | . 2 . 1 . 1 . 1 . . . Utility 19 | . . 1 3 . 1 1 1 1 1 10 Weapon 7 | . 3 1 3 . . . . . . . Tool/Special 3 | . . 1 1 . . . 1 . . . Average Slot Usage (%) 95 | . 98 98 99 99 95 94 98 92 90 79 Engine 9 | . 14 12 10 11 11 7 8 . 3 6 Core 1 | . . . . . . 3 . 8 3 . Treads 29 | . 24 27 32 33 33 32 35 36 22 15 Wheel 1 | . 3 . . . . . . . 3 6 Device 6 | . 11 14 . . . 1 13 6 5 8 Storage 10 | . 14 14 11 11 11 11 9 9 7 7 Processor 1 | . 2 . . . 6 . . . 11 7 Hackware 9 | . . . 20 21 11 11 5 2 9 10 Protection 2 | . . . . . . 4 7 11 3 2 Energy Gun 5 | . 16 22 . . . . . . 4 . Energy Cannon 7 | . . 1 14 12 . 3 16 5 . 5 Ballistic Gun 6 | . 11 1 6 7 11 15 1 6 5 2 Peak Build Rating 51 | 6 13 16 29 28 26 31 43 40 51 51 Average Rating 27 | 4 9 13 24 27 25 27 39 37 46 43 On Entrance 24 | . 6 13 16 28 26 26 31 39 39 45 Avg Prop Armor Cover (%) 13 | . 12 . 19 . . . . 20 11 14 Naked Turns . | . . . . . . . . . . . Heaviest Build 130 | 13 50 53 60 58 57 62 76 93 130 129 Greatest Support 96 | 40 46 46 66 60 60 60 80 96 96 88 Greatest Overweight (x) 4 | 2 3 1 3 . . 1 1 . 4 4 Average Overweight (x) . | . . . . . . . . . 1 3 Largest Inventory Capacity 25 | 8 20 20 20 20 20 20 20 25 25 25 Average Capacity 20 | 7 15 19 20 20 20 20 20 20 25 24 Most Carried 25 | 5 15 20 20 20 20 20 20 23 25 25 Average Carried 18 | 3 11 17 19 19 19 18 19 19 23 23 Final Capacity 25 | 8 15 20 20 20 20 20 20 25 25 5 Final Carried 23 | 5 15 18 20 18 20 17 20 23 23 5 Class Distribution -------------------- 63% | Mutant 26% | Hacker-Mutant 5% | Bothacker-Mutant Dominant Class ---------------- Mutant | -10/Materials Mutant | -10/Mines Hacker-Mutant | -9/Materials Hacker-Mutant | -9/Mines Mutant | -9/Exiles Mutant | -8/Mines Mutant | -8/Materials Mutant | -8/Garrison Mutant | -7/Factory Bothacker-Mutant | -7/Garrison Resources | -11 -10 -10 -9 -9 -9 -8 -8 -8 -7 -7 ----------- Run | Yrd Mat Min Mat Min Exi Min Mat Gar Fac Gar Matter Collected 3372 | 278 477 176 520 33 15 384 319 622 272 276 Remotely . | . . . . . . . . . . . Salvage Created 8243 | 140 946 168 1743 370 15 466 1840 1091 999 465 Parts 439 | 9 62 9 86 12 . 45 97 45 49 25 Haulers Intercepted 17 | . 2 . 6 . . . 6 . 3 . Recyclers Shooed 2 | . 1 . . . . . 1 . . . Parts Field Recycled . | . . . . . . . . . . . Retrieved Matter . | . . . . . . . . . . . Parts Self-Destructed . | . . . . . . . . . . . Prevented . | . . . . . . . . . . . Parts Restored . | . . . . . . . . . . . Kills | -11 -10 -10 -9 -9 -9 -8 -8 -8 -7 -7 ------- Run | Yrd Mat Min Mat Min Exi Min Mat Gar Fac Gar Combat Hostiles Destroyed 126 | . 13 11 26 6 . 9 24 20 9 8 Melee 6 | . . . . 1 . . . 2 1 2 Guns 45 | . 12 7 3 . . 5 2 10 5 1 Cannons 46 | . . 1 12 3 . . 22 4 . 4 AOE 23 | . . 3 9 . . 4 . 4 2 1 Classes Destroyed 17 | 2 8 2 1 . . 1 1 1 . 1 Worker 25 | . 6 1 3 . . 6 5 . 4 . Builder 8 | . 1 . . 1 . 1 3 . 2 . Tunneler 8 | 2 . 1 . 1 . 2 . . 2 . Hauler 17 | . 2 . 6 . . . 6 . 3 . Recycler 15 | 1 3 . 7 1 . . . . 3 . Mechanic 1 | . 1 . . . . . . . . . Operator 5 | . 2 . 1 . . . 2 . . . Watcher 13 | . 3 . 5 . . . 5 . . . Swarmer 33 | . 6 2 13 . . 4 2 4 2 . Grunt 55 | . 7 2 6 6 . 3 15 11 5 . Duelist 3 | . . . . . . . 1 1 . 1 Sentry 20 | . . . 7 . . . 6 1 1 5 Demolisher 1 | . . 1 . . . . . . . . Specialist 1 | . . . . . . . . . . 1 Hunter 4 | . . . . . . 2 . . 1 1 Programmer 4 | . . . . . . . . 3 . 1 Assembled 6 | . . 6 . . . . . . . . Best Kill Streak 8 | 3 3 3 5 4 . 4 7 5 8 3 Combat Bots Only 5 | . 3 3 4 3 . 4 5 5 2 3 Max Kills in Single Turn 3 | 1 1 1 3 1 . 3 2 3 2 2 Gunslinging . | . . . . . . . . . . . Exploded 3 | . . 1 3 . . 3 . 3 2 1 Melee 1 | . . . . 1 . . . 1 1 1 Uniques/NPCs Destroyed . | . . . . . . . . . . . Combat | -11 -10 -10 -9 -9 -9 -8 -8 -8 -7 -7 -------- Run | Yrd Mat Min Mat Min Exi Min Mat Gar Fac Gar Hostile Shots Fired 1201 | . 79 49 79 23 . 50 131 167 99 524 Missed 384 | . 21 11 31 7 . 10 35 35 20 214 Hits 817 | . 58 38 48 16 . 40 96 132 79 310 Melee 14 | . . 2 . . . . 1 2 . 9 Projectile 803 | . 58 36 48 16 . 40 95 130 79 301 AOE 5 | . . 5 . . . . . . . . Critical Strikes 28 | . . 2 2 . . 2 6 11 . 5 Part Disruptions 2 | . . 1 . . . . . 1 . . Damage Taken 9317 | . 707 755 634 256 . 645 1208 1498 959 2655 Core 1363 | . 88 135 57 33 . 60 101 186 74 629 Absorbed by Shields 1989 | . . . . . . . 188 613 228 960 Regen/Repaired (Parts) 267 | . . . . . . . 267 . . . Core Remaining (%) 54 | 100 . 10 . . . 62 . 47 . . Volleys Fired 525 | 6 88 33 72 8 7 37 112 68 47 47 Largest 2 | 1 2 2 2 2 1 2 2 2 2 2 Hottest 150 | 20 112 112 123 119 25 88 150 85 105 88 Shots Fired 950 | 6 168 60 139 16 7 65 224 119 84 62 Gun 507 | 6 168 51 51 2 7 56 9 67 75 15 Cannon 410 | . . 4 83 14 . 6 215 50 8 30 Launcher 19 | . . 5 5 . . 3 . 2 1 3 Special 14 | . . . . . . . . . . 14 Kinetic 317 | 6 74 4 51 2 7 56 9 67 26 15 Thermal 418 | . 39 47 29 . . . 215 50 8 30 Explosive 19 | . . 5 5 . . 3 . 2 1 3 Electromagnetic 182 | . 55 4 54 14 . 6 . . 49 . Robot Hit Streak 31 | 2 7 8 14 6 3 11 17 10 31 24 Robot Miss Streak 11 | 1 7 4 3 2 2 2 11 4 3 2 Penetration Max . | . . . . . . . . . . . Secondary Targets 2 | . 1 . . . . . . . 1 . Max Gunslinging Chain 1 | . 1 . . . . . . . 1 . Shots Hit Robots 671 | 4 97 34 84 18 15 41 143 107 69 59 Core Hits 319 | 4 40 22 49 7 1 24 59 41 33 39 Critical Kills 5 | . 1 . 1 1 . . 1 1 . . Critical Parts Destroyed 2 | . . . . 2 . . . . . . Critical Strikes 17 | . 4 1 2 3 . . 1 3 1 2 Burn 4 | . 3 1 . . . . . . . . Meltdown 1 | . . . 1 . . . . . . . Destroy 3 | . 1 . . . . . 1 1 . . Corrupt 1 | . . . 1 . . . . . . . Smash 3 | . . . . 3 . . . . . . Sever 5 | . . . . . . . . 2 1 2 Melee Attacks 105 | . . . . 17 11 7 . 41 13 16 Impact 17 | . . . . 17 . . . . . . Slashing 69 | . . . . . . 6 . 34 13 16 Piercing . | . . . . . . . . . . . Sneak Attacks 20 | . . . . 1 10 1 . 6 2 . Combat Hostiles . | . . . . . . . . . . . Follow-up Attacks . | . . . . . . . . . . . Damage Inflicted 17565 | 74 1438 795 2852 673 88 1021 3768 3353 1770 1733 Guns 5420 | 74 1387 469 387 20 88 568 117 871 1090 349 Cannons 6996 | . . 48 1511 278 . 80 3651 762 227 439 Explosions 2745 | . 51 278 947 43 . 304 . 398 189 535 Melee 2380 | . . . . 332 . 69 . 1320 249 410 Ramming 24 | . . . 7 . . . . 2 15 . Kinetic 3390 | 74 585 30 387 20 88 568 117 871 301 349 Thermal 6639 | . 425 439 644 43 . . 3651 762 236 439 Explosive 2411 | . . 278 716 . . 304 . 398 180 535 Electromagnetic 2721 | . 428 48 1098 278 . 80 . . 789 . Impact 332 | . . . . 332 . . . . . . Slashing 2048 | . . . . . . 69 . 1320 249 410 Piercing . | . . . . . . . . . . . Highest Corruption 10 | . . . . . . . 3 10 1 5 Average Corruption 3 | . . . . . . . 3 5 1 1 Corruption Purged . | . . . . . . . . . . . Corruption Blocked . | . . . . . . . . . . . Effects 46 | . . . . . . . 15 21 1 9 Message Errors 7 | . . . . . . . 3 2 . 2 Matter Fused 10 | . . . . . . . 1 3 . 6 Heat Flow Errors 5 | . . . . . . . 1 4 . . Energy Discharges 7 | . . . . . . . 4 2 1 . Data Loss (minor) 7 | . . . . . . . 2 4 . 1 Data Loss (major) 1 | . . . . . . . . 1 . . Misfires 6 | . . . . . . . 2 4 . . Weapon Failures 3 | . . . . . . . 2 1 . . Overload Shots . | . . . . . . . . . . . Overflow Damage 554 | . . 1 73 151 . 43 27 205 54 . Projectiles 56 | . . . 7 7 . . 27 . 15 . Explosions 119 | . . 1 66 . . 43 . . 9 . Melee 379 | . . . . 144 . . . 205 30 . Knockbacks 1 | . . . . 1 . . . . . . Impact . | . . . . . . . . . . . Kinetic . | . . . . . . . . . . . Secondary 1 | . . . . 1 . . . . . . Self-Inflicted Damage 383 | . . . 88 39 . 84 . 49 123 . Shots 11 | . . . 3 1 . 3 . 1 3 . Rammed 5 | . . . 1 . . . . 2 2 . Targets Rammed 5 | . . . 1 . . . . 2 2 . Kicked . | . . . . . . . . . . . Crushed . | . . . . . . . . . . . Highest Temperature 384 | . 268 345 282 183 6 88 330 384 289 235 Average Temperature 84 | . 97 113 53 62 3 18 51 125 117 65 Received Heat Transfer 2549 | . 336 234 177 108 . 81 575 490 149 399 Effects 9 | . 3 3 . . . . 1 1 1 . Energy Bleed 2 | . 1 . . . . . . . 1 . Interference 5 | . 2 3 . . . . . . . . Matter Decay 2 | . . . . . . . 1 1 . . Siege Activations . | . . . . . . . . . . . Martial Activations . | . . . . . . . . . . . Shielding Activations . | . . . . . . . . . . . Robots Disrupted . | . . . . . . . . . . . Combat Hostiles . | . . . . . . . . . . . Robots Corrupted 6 | . . . 2 3 . . . . 1 . Combat Hostiles 5 | . . . 2 2 . . . . 1 . Parts Fried 17 | . 2 . 7 4 . . . . 4 . Impact Corruptions 7 | . . . . 7 . . . . . . Robots Melted 2 | . 1 . 1 . . . . . . . Combat Hostiles 1 | . 1 . . . . . . . . . Parts Melted 13 | . 1 . 3 . . . 5 3 . 1 Heat Transferred 10914 | . 1197 1184 977 50 . . 5328 1147 346 685 Parts Sabotaged . | . . . . . . . . . . . Parts Stolen . | . . . . . . . . . . . Parts Stripped . | . . . . . . . . . . . Power Chain Reactions 6 | . 1 . 2 1 . . . . 2 . Alert | -11 -10 -10 -9 -9 -9 -8 -8 -8 -7 -7 ------- Run | Yrd Mat Min Mat Min Exi Min Mat Gar Fac Gar Maximum Alert Level 2 | . . . 2 1 . . 1 2 1 1 Low Security (%) 65 | 100 100 100 22 77 . 100 87 3 61 4 Level 1 25 | . . . 44 22 . . 12 50 38 95 Level 2 9 | . . . 32 . . . . 45 . . Level 3 . | . . . . . . . . . . . Level 4 . | . . . . . . . . . . . Level 5 . | . . . . . . . . . . . High Security . | . . . . . . . . . . . Max Security . | . . . . . . . . . . . Peak Influence 629 | 10 125 63 613 264 . 97 305 629 329 333 Initial 329 | . . . 22 229 . . 30 189 329 153 Average 153 | . 42 3 315 109 . 25 97 422 196 264 Influence Increases 4495 | 15 511 181 1059 155 . 402 877 600 336 359 Destroy 0b10 Robot/C 2425 | . 260 100 520 120 . 240 480 420 135 150 Destroy 0b10 Robot/NC 470 | 15 90 10 110 15 . 45 105 24 56 . Destroy Leader 528 | . 60 30 162 10 . 50 142 20 38 16 Allied During Kill 23 | . . . . . . 14 . 2 . 7 Trap Triggered on 0b10 26 | . . 10 . . . . . . . 16 Successful Hack 154 | . 24 . 49 . . 6 30 . 28 17 Select Force Hacks 120 | . 30 . 60 . . . 30 . . . Disable Machine 195 | . 15 . 60 . . . 60 12 48 . Anti-Garrison Action 176 | . . . . . . . . 100 . 76 Destroy Structure 198 | . 2 16 53 10 . 17 30 22 19 29 Lose Combat Pursuer 180 | . 30 15 45 . . 30 . . 12 48 Influence Decreases 4293 | 15 510 123 529 744 . 323 665 262 746 376 Entered New Map 915 | . . 1 37 360 . . 49 102 300 66 Time Decay 2656 | 15 480 106 492 374 . 240 533 . 416 . Lost Part 376 | . 30 16 . 10 . 10 50 60 30 170 Lost Ally 313 | . . . . . . 73 . 100 . 140 Purge Threat 33 | . . . . . . . 33 . . . Squads Dispatched 19 | . 3 1 3 . . . 7 . 5 . Investigation 7 | . 1 1 2 . . . 2 . 1 . Extermination 1 | . . . . . . . . . 1 . Reinforcement 6 | . 2 . 1 . . . 2 . 1 . Assault . | . . . . . . . . . . . Garrison 5 | . . . . . . . 3 . 2 . Intercept . | . . . . . . . . . . . Searches Triggered . | . . . . . . . . . . . Construction Impeded 2 | . . . 1 . . . . . 1 . Haulers Reinforced . | . . . . . . . . . . . Active Scanning Responses . | . . . . . . . . . . . Cargo Convoy Interrupts . | . . . . . . . . . . . Stealth | -11 -10 -10 -9 -9 -9 -8 -8 -8 -7 -7 --------- Run | Yrd Mat Min Mat Min Exi Min Mat Gar Fac Gar Distress Signals 5 | . 2 . . . . . 1 . 1 1 Communications Jammed 22 | . . . . . . . . . . 22 Distress Signals 22 | . . . . . . . . . . 22 Times Spotted 209 | . 24 13 40 7 . 14 32 22 21 36 Peak Tracking Total 10 | . 4 3 5 3 . 4 5 5 7 10 Tactical Retreats 7 | . 1 1 1 . . 1 . . 1 2 Traps | -11 -10 -10 -9 -9 -9 -8 -8 -8 -7 -7 ------- Run | Yrd Mat Min Mat Min Exi Min Mat Gar Fac Gar Traps Triggered 10 | . . . . . . . 1 2 3 4 Indirectly . | . . . . . . . . . . . Trap Hack Attempts 19 | . . . . . . . . 19 . . Triggered . | . . . . . . . . . . . Disarmed . | . . . . . . . . . . . Reprogrammed 1 | . . . . . . . . 1 . . Reused 4 | . . 2 . . . . . . . 2 Traps Extracted . | . . . . . . . . . . . Installed 8 | . . 4 . . . . . . . 4 Triggered 3 | . . 1 . . . . . . . 2 Most Traps Carried 5 | . . 3 . . . . . 5 5 5 Machines | -11 -10 -10 -9 -9 -9 -8 -8 -8 -7 -7 ---------- Run | Yrd Mat Min Mat Min Exi Min Mat Gar Fac Gar Machines Disabled 19 | . 2 . 4 . . . 4 3 4 2 Max in Single Turn 2 | . 1 . 2 . . . 1 1 1 1 Garrison Relay 4 | . . . . . . . . 2 . 2 Machines Repaired . | . . . . . . . . . . . Machines Dismantled . | . . . . . . . . . . . Machines Sabotaged . | . . . . . . . . . . . Overloaded Fab Kills . | . . . . . . . . . . . Hacking | -11 -10 -10 -9 -9 -9 -8 -8 -8 -7 -7 --------- Run | Yrd Mat Min Mat Min Exi Min Mat Gar Fac Gar Machines Accessed 48 | . 6 1 13 . 3 1 14 2 6 2 Terminals 34 | . 5 . 11 . . 1 9 2 4 2 Fabricators . | . . . . . . . . . . . Repair Stations 2 | . . . . . . . 2 . . . Recycling Units 3 | . 1 . 1 . . . 1 . . . Scanalyzers 3 | . . . 1 . . . 1 . 1 . Garrison Access 2 | . . . . . . . 1 . 1 . Total Hacks 150 | . 24 1 40 . 10 2 53 4 13 3 Successful 101 | . 15 1 29 . 10 1 33 1 9 2 Failed 46 | . 8 . 10 . . 1 19 3 4 1 Catastrophic 6 | . . . . . . . 3 1 2 . Database Lockouts 3 | . 1 . 1 . . . 1 . . . Manual 70 | . 22 . 24 . 1 . 22 . 1 . Terminals 115 | . 23 . 37 . . 2 39 4 7 3 Fabricators . | . . . . . . . . . . . Repair Stations 7 | . . . . . . . 7 . . . Recycling Units 4 | . 1 . 2 . . . 1 . . . Scanalyzers 9 | . . . 1 . . . 3 . 5 . Garrison Access 4 | . . . . . . . 3 . 1 . Terminal Hacks 56 | . 4 1 16 . 10 1 18 1 3 2 Record 9 | . . . . . 9 . . . . . Part Schematic 4 | . 2 . 2 . . . . . . . Robot Analysis 9 | . 1 . 4 . . . 4 . . . Prototype ID Bank 4 | . . . 2 . . . 2 . . . Open Door 3 | . . 1 . . . . . 1 . 1 Branch Access Points 2 | . . . 1 . . . . . 1 . Emergency Access Points 1 | . . . . . . . . . . 1 Terminal Index 1 | . . . . . . . 1 . . . Alert Level 2 | . . . . . . . 2 . . . Unreport Threat 2 | . . . . . . . 2 . . . Locate Traps 5 | . 1 . 2 . . . 2 . . . Security Status 1 | . . . . . . . 1 . . . Patrol Status 2 | . . . . . . 1 1 . . . Recall Investigation 1 | . . . 1 . . . . . . . Recall Reinforcements 1 | . . . . . . . 1 . . . Hauler Manifests 3 | . . . 1 . . . 1 . 1 . Zone Layout 5 | . . . 3 . . . 1 . 1 . Proto ID Catalog 1 | . . . . . 1 . . . . . Fabricator Hacks . | . . . . . . . . . . . Repair Station Hacks 3 | . . . . . . . 3 . . . Scan Component 2 | . . . . . . . 2 . . . Repair 1 | . . . . . . . 1 . . . Recycling Unit Hacks 1 | . . . 1 . . . . . . . Retrieve Components 1 | . . . 1 . . . . . . . Scanalyzer 7 | . . . . . . . 2 . 5 . Insert Component 1 | . . . . . . . 1 . . . Analyze 1 | . . . . . . . 1 . . . Retrieve Study 5 | . . . . . . . . . 5 . Garrison Access Hacks 3 | . . . . . . . 2 . 1 . Unlock Access 2 | . . . . . . . 1 . 1 . Coupler Status 1 | . . . . . . . 1 . . . Unauthorized Hacks 31 | . 11 . 12 . . . 8 . . . Terminals 26 | . 10 . 10 . . . 6 . . . Track 2 | . 1 . 1 . . . . . . . Botnet 4 | . 2 . 1 . . . 1 . . . Disrupt 2 | . 1 . 1 . . . . . . . Operators 1 | . 1 . . . . . . . . . Skim 17 | . 5 . 7 . . . 5 . . . Fabricators . | . . . . . . . . . . . Repair Stations . | . . . . . . . . . . . Recycling Units 3 | . 1 . 1 . . . 1 . . . Tunnel 3 | . 1 . 1 . . . 1 . . . Scanalyzers 1 | . . . 1 . . . . . . . Extract 1 | . . . 1 . . . . . . . Garrison Access 1 | . . . . . . . 1 . . . Restock 1 | . . . . . . . 1 . . . Data Cores Recovered 2 | . 1 . 1 . . . . . . . Used 1 | . 1 . . . . . . . . . Hacking Detections 38 | . 5 . 11 . . 1 13 2 5 1 Full Trace Events 3 | . . . . . . . 2 . 1 . Feedback Events . | . . . . . . . . . . . Feedback Blocked . | . . . . . . . . . . . Robot Schematics Acquired . | . . . . . . . . . . . Robots Built . | . . . . . . . . . . . Authchips . | . . . . . . . . . . . Time . | . . . . . . . . . . . Total Robot Build Rating . | . . . . . . . . . . . Part Schematics Acquired 9 | . 1 . 7 . . . 1 . . . Parts Built . | . . . . . . . . . . . Authchips . | . . . . . . . . . . . Time . | . . . . . . . . . . . Total Part Build Rating . | . . . . . . . . . . . Part Studies Acquired 5 | . . . . . . . . . 5 . Parts Repaired 1 | . . . . . . . 1 . . . Time 19 | . . . . . . . 19 . . . Parts Recycled . | . . . . . . . . . . . Recycled Matter . | . . . . . . . . . . . Retrieved Matter . | . . . . . . . . . . . Retrieved Components 9 | . . . 9 . . . . . . . Parts Scanalyzed 1 | . . . . . . . 1 . . . Part Schematics Acquired 1 | . . . . . . . 1 . . . Parts Damaged . | . . . . . . . . . . . Bothacking | -11 -10 -10 -9 -9 -9 -8 -8 -8 -7 -7 ------------ Run | Yrd Mat Min Mat Min Exi Min Mat Gar Fac Gar Used RIF Installer 3 | . . . . . . . . 2 . 1 Threat Obfuscator 1 | . . . . . . . . 1 . . Signal Jammer 1 | . . . . . . . . . . 1 Robots Hacked 14 | . . . . . . 1 . 1 . 12 Non-combat 2 | . . . . . . 1 . . . 1 Combat 12 | . . . . . . . . 1 . 11 Robot Hacks Applied 14 | . . . . . . 1 . 1 . 12 parse_system 1 | . . . . . . 1 . . . . scatter_targeting 1 | . . . . . . . . . . 1 disrupt_area 1 | . . . . . . . . . . 1 amplify_resonance 3 | . . . . . . . . . . 3 disable_weapons 1 | . . . . . . . . . . 1 overwrite_iff 4 | . . . . . . . . . . 4 formatsys_high 3 | . . . . . . . . 1 . 2 Relay Couplers Released 15 | . . . . . . . . 7 . 8 Machine Destruction 15 | . . . . . . . . 7 . 8 Attached 7 | . . . . . . . . 2 . 5 Fabnet Peak Effective % . | . . . . . . . . . . . Robots Rewired 7 | . . . . . 4 . . 3 . . Allies Hacked 1 | . . . . . . . . . . 1 Hacks Repelled . | . . . . . . . . . . . Allies | -11 -10 -10 -9 -9 -9 -8 -8 -8 -7 -7 -------- Run | Yrd Mat Min Mat Min Exi Min Mat Gar Fac Gar Total Allies 17 | . . . . . 4 . . 5 . 8 Largest Group 4 | . . . . . 4 4 . 3 . 2 Highest-Rated Group 70 | . . . . . 58 58 . 48 . 70 Highest-Rated Ally 40 | . . . . . 21 21 . 25 . 40 Total Orders . | . . . . . . . . . . . Ally Attacks 51 | . . . . . . 15 . 21 . 15 Total Damage 711 | . . . . . . 252 . 229 . 230 Kills 6 | . . . . . . 3 . 1 . 2 Allies Corrupted . | . . . . . . . . . . . Allies Melted . | . . . . . . . . . . . Intel | -11 -10 -10 -9 -9 -9 -8 -8 -8 -7 -7 ------- Run | Yrd Mat Min Mat Min Exi Min Mat Gar Fac Gar Active Infowar (turns) 4471 | 27 1205 2122 99 . . 165 . 59 609 185 Structural 5 | . . . . . . . . 5 . . Seismic 4314 | 27 1205 2122 99 . . 165 . 54 458 184 Machine Analysis 587 | . . . . . . . . . 587 . Cloaking 1 | . . . . . . . . . . 1 Robot Analysis Total 9 | . 1 . 4 . . . 4 . . . Derelict Logs Recovered 2 | . . 1 . 1 . . . . . . Drone Launches . | . . . . . . . . . . . Drone Recoveries . | . . . . . . . . . . . Exploration | -11 -10 -10 -9 -9 -9 -8 -8 -8 -7 -7 ------------- Run | Yrd Mat Min Mat Min Exi Min Mat Gar Fac Gar Turns Passed 14329 | 110 1534 2143 2326 1123 822 1116 2076 1095 1010 974 Spaces Moved 6327 | 48 712 609 1188 580 460 551 885 441 426 427 Core 18 | 10 . . . . . . . . . 8 Treads 5398 | 38 432 609 1154 580 460 551 885 441 229 19 Legs . | . . . . . . . . . . . Wheels 911 | . 280 . 34 . . . . . 197 400 Hover . | . . . . . . . . . . . Flight . | . . . . . . . . . . . Fastest Speed 50 | 50 100 160 145 170 170 170 167 160 160 50 Average Speed 171 | 151 144 239 165 170 170 176 169 167 165 155 Slowest Speed 330 | 160 160 240 330 170 170 250 250 170 245 320 Overloaded Moves . | . . . . . . . . . . . Propulsion Burnouts . | . . . . . . . . . . . Robots Hopped . | . . . . . . . . . . . Potential Cave-ins . | . . . . . . . . . . . Cave-ins Triggered . | . . . . . . . . . . . Exploration Rate (%) 69 | 4 84 98 91 99 91 99 80 50 14 57 Regions Visited 10 Branch Regions 4 Pre-discovered Areas 13 | . 3 1 2 1 1 . 5 . . . Known Exits Taken 5 | . . . 1 1 . 1 1 . 1 . Unknown Exits Taken 4 | 1 1 1 . . 1 . . . . . Scrap Searched 3 | . . 1 . 1 . 1 . . . . Spaces Dug 47 | . . . 7 . . 31 2 1 6 . Terrain Destroyed 202 | . 2 26 50 11 . 31 30 7 17 28 Melee 7 | . . . . . . . . 1 6 . Projectile 33 | . . . 2 . . . 30 . . 1 AOE 162 | . 2 26 48 11 . 31 . 6 11 27 Terrain Rammed . | . . . . . . . . . . . Walls Destroyed . | . . . . . . . . . . . Machines Disabled . | . . . . . . . . . . . Actions | -11 -10 -10 -9 -9 -9 -8 -8 -8 -7 -7 --------- Run | Yrd Mat Min Mat Min Exi Min Mat Gar Fac Gar Total 8761 | 76 1043 1234 1418 667 491 626 1238 657 636 675 Wait 1308 | 12 180 550 79 58 4 13 181 40 104 87 Move 6318 | 47 711 608 1187 579 459 550 884 440 426 427 Hop . | . . . . . . . . . . . Pick Up 118 | 5 22 16 17 . 5 1 19 12 9 12 Fast Attach 52 | 6 3 1 17 . . . 9 4 6 6 Attach 54 | . 3 5 2 2 . 3 9 8 6 16 Detach 6 | . . . . . . . . 2 . 4 Swap 85 | . 21 7 12 2 1 13 7 14 5 3 Drop 113 | . 15 10 31 1 4 2 17 7 10 16 Fire 525 | 6 88 33 72 8 7 37 112 68 47 47 Melee 105 | . . . . 17 11 7 . 41 13 16 Ram 1 | . . . . . . . . . 1 . Kick . | . . . . . . . . . . . Crush 4 | . . . 1 . . . . 2 1 . Escape Stasis 45 | . . . . . . . . . 8 37 Rewire . | . . . . . . . . . . . Trap 27 | . . 4 . . . . . 19 . 4 Miscellaneous . | . . . . . . . . . . . Route ------- -11/Scrapyard -10/Materials (discovered 6 exits: *Mat x3 / *Min x2 / Sub) -10/Mines (discovered 3 exits: *Mat x2 / *Sub) -9/Materials (discovered 5 exits: *Mat x3 / *Min x2) -9/Mines (discovered 4 exits: *Mat x2 / *Exi / *Zio) -9/Exiles -8/Mines (discovered 2 exits: *Mat x2) -8/Materials (discovered 4 exits: *Fac x3 / Gar) -8/Garrison -7/Factory (discovered 4 exits: Sto / Low x2 / Gar) -7/Garrison (discovered 1 exit: [*Fac]) History --------- Turn | Location | Event 15 | -11/Scrapyard | Discovered new exit (range 16) 111 | -11/Scrapyard | Entered Materials 221 | -10/Materials | Discovered new exit (range 16) 301 | -10/Materials | Build established: Mutant 732 | -10/Materials | Discovered new exit (range 8) 786 | -10/Materials | Discovered new exit (range 16) 897 | -10/Materials | Central database locked down 1125 | -10/Materials | Discovered new exit (range 6) 1156 | -10/Materials | Discovered new exit (range 16) 1227 | -10/Materials | Learned Storage emergency access door positions 1340 | -10/Materials | Lost 3 parts (1n1u1w) 1355 | -10/Materials | Identified exit to Subcaves 1355 | -10/Materials | Learned location of 1 exit from Materials 1442 | -10/Materials | Learned location of Mines (-9) 1468 | -10/Materials | Learned 4 Subcaves zone layouts 1502 | -10/Materials | Learned Storage stockpile data 1645 | -10/Materials | Entered Mines 1754 | -10/Mines | Learned location of Storage (-7) 1754 | -10/Mines | Discovered new exit (range 12) 1974 | -10/Mines | Found a hidden stash of uninstalled traps 2250 | -10/Mines | Assembled infested the area 2302 | -10/Mines | Discovered exit to Subcaves (range 5) 2350 | -10/Mines | Core integrity fell below 50% 2831 | -10/Mines | Core integrity fell below 20% 3052 | -10/Mines | Received a Rocket Launcher from a helpful Derelict 3200 | -10/Mines | Discovered new exit (range 6) 3218 | -10/Mines | Met a Derelict shopkeep closing up shop 3788 | -10/Mines | Entered Materials 3788 | -9/Materials | Evolved 2 slots: Propulsion x1, Utility x1 3789 | -9/Materials | Identified exit to Materials 3952 | -9/Materials | Discovered new exit (range 13) 4076 | -9/Materials | Discovered exit to Materials (range 10) 4161 | -9/Materials | Build established: Hacker-Mutant 4605 | -9/Materials | Discovered exit to Materials (range 10) 4815 | -9/Materials | Discovered new exit (range 16) 4831 | -9/Materials | Identified exit to Mines 4939 | -9/Materials | Learned location of Recycling (-7) 4976 | -9/Materials | Learned Storage security intel 5004 | -9/Materials | Learned location of 1 exit from Storage 5037 | -9/Materials | Learned 2 Materials zone layouts 5048 | -9/Materials | Learned Storage trap positions 5154 | -9/Materials | Central database locked down 6114 | -9/Materials | Entered Mines 6171 | -9/Mines | Learned Materials emergency access door positions 6273 | -9/Mines | Excavation squad dispatched 6273 | -9/Mines | A large section of the Mines collapsed 6728 | -9/Mines | Joined a pair of Derelicts in attacking an 0b10 outpost 6957 | -9/Mines | A weapon hastily lodged in a ceiling crevice suddenly fell to the ground 7192 | -9/Mines | A Derelict revealed a hidden shortcut to a safe place 7218 | -9/Mines | Identified exit to Zion 7230 | -9/Mines | Deemed a non-threat by the Exiles lab entrance 7230 | -9/Mines | Discovered new exit (range 5) 7235 | -9/Mines | Identified exit to Exiles 7237 | -9/Mines | Entered Exiles 7237 | -9/Exiles | Found Exiles lab destroyed 7439 | -9/Exiles | Opened EX-Vault 7449 | -9/Exiles | Found Cloak of Protection 7520 | -9/Exiles | Build established: Mutant 7547 | -9/Exiles | Learned location of Zion (-7) 8030 | -9/Exiles | Discovered new exit (range 14) 8059 | -9/Exiles | Entered Mines 8059 | -8/Mines | Accompanied by 4 allies 8242 | -8/Mines | Lost 4 allies 9066 | -8/Mines | Discovered exit to Materials (range 9) 9175 | -8/Mines | Entered Materials 9175 | -8/Materials | Evolved 2 slots: Propulsion x1, Utility x1 9176 | -8/Materials | Identified exit to Factory 9320 | -8/Materials | Garrison activated, responded to threat 9470 | -8/Materials | Repaired Arm. Treads 9675 | -8/Materials | Build established: Hacker-Mutant 10176 | -8/Materials | Build established: Mutant 10180 | -8/Materials | Learned Storage trap positions 10236 | -8/Materials | Learned Storage security intel 10356 | -8/Materials | Learned location of 1 exit from Extension 10397 | -8/Materials | Learned 4 Recycling zone layouts 10430 | -8/Materials | Learned location of 2 exits from Lower Caves 10501 | -8/Materials | Discovered exit to Factory (range 16) 10567 | -8/Materials | Central database locked down 11093 | -8/Materials | Lost 3 parts (1p1n1u) 11249 | -8/Materials | Identified exit to Garrison 11251 | -8/Materials | Entered Garrison 11273 | -8/Garrison | Triggered checkpoint 11333 | -8/Garrison | Triggered checkpoint 11470 | -8/Garrison | Installed Relay Interface Framework 11515 | -8/Garrison | Garrison Relay disabled 11662 | -8/Garrison | Rescued a captive Derelict 11761 | -8/Garrison | Triggered checkpoint 11778 | -8/Garrison | Triggered checkpoint 11817 | -8/Garrison | Lost 3 allies 11915 | -8/Garrison | Triggered checkpoint 11986 | -8/Garrison | Core integrity fell below 50% 12036 | -8/Garrison | Lost 6 parts (1p2n3u) 12036 | -8/Garrison | Garrison Relay disabled 12079 | -8/Garrison | Expanded RIF knowledge: Threat Obfuscation 12217 | -8/Garrison | Triggered checkpoint 12237 | -8/Garrison | Discovered exit to Factory (range 12) 12275 | -8/Garrison | System corruption reached 10% 12346 | -8/Garrison | Entered Factory 12346 | -7/Factory | Evolved 2 slots: Utility x2 12347 | -7/Factory | Identified exit to Storage 12579 | -7/Factory | Identified exit to Lower Caves 13218 | -7/Factory | Garrison activated, responded to threat 13356 | -7/Factory | Identified exit to Garrison 13356 | -7/Factory | Entered Garrison 13380 | -7/Garrison | Triggered checkpoint 13387 | -7/Garrison | Lost 3 parts (1n2w) 13404 | -7/Garrison | Garrison Relay disabled 13566 | -7/Garrison | Rescued a captive Derelict 13568 | -7/Garrison | Rescued a captive Derelict 13644 | -7/Garrison | Triggered checkpoint 13713 | -7/Garrison | Build established: Bothacker-Mutant 13842 | -7/Garrison | Discovered new exit (range 15) 13938 | -7/Garrison | Triggered checkpoint 14023 | -7/Garrison | Garrison Relay disabled 14104 | -7/Garrison | Expanded RIF knowledge: Signal Jamming 14159 | -7/Garrison | Heavy support dispatched to Factory 14284 | -7/Garrison | Triggered checkpoint 14286 | -7/Garrison | Core integrity fell below 50% 14327 | -7/Garrison | Core integrity fell below 20% 14330 | -7/Garrison | Destroyed by H-55 Commando with Gauss Rifle Last Messages --------------- 14321_ I-36 Angel distress signal jammed. 14321_ Installed Gamma Bomb Trap. 14321_ Slug penetrates X-67 Chaingunner. 14321_ X-67 Chaingunner suffers critical hit (Destroy). 14321_ X-67 Chaingunner destroyed. 14322_ I-36 Angel distress signal jammed. 14323_ Dropped Huge Storage Unit. 14323_ Penetrated by Slug. 14323_ Dropped Lgt. Treads. 14324_ The unstable cave ceiling collapses. 14324_ Dropped Relay Coupler [Swarmer]. 14324_ Slug penetrates Wall. 14325_ Dropped Relay Coupler [Brawler]. 14325_ Extracted 94 energy. 14326_ Penetrated by Slug. 14326_ Acquired Gamma Bomb Trap. 14327_ I-36 Angel distress signal jammed. 14327_ Extracted 1 energy. 14328_ I-36 Angel distress signal jammed. 14330_ Penetrated by Slug. Map ----- +----------------------------------------------------+ | ??????# !#???????????????????????????????????????? | | #######[%##########???????????????????????+??????? | | #?????????????????+????????????? | | #??????????????????????????????? | | #??????????????????????????????? | | #??????????????????????????????? | | "" #??????????????????????????????? | | "%%" #??????????????????????????????? | | "" ####???????????????????????????? | | "" #???????????????????????????? | | %= #???????????????????????+???? | | < =% ##???????????????????????????? | | ! #???????????????????????????? | | # #???????????????????????????? | | ##? #??????????????????????+???? | | #???#???????????????????????+??? | | #??????????????????????????????? | | #??????????????????????????????? | | #??????????????????????????????? | | #??????????????????????????????? | | #??????????????????????????????? | | #+##### #########?#####????????????????????????? | | ??###?# = ???????# #????????????????????????? | | #+#T###% % [ ######!/ #####????????????????????? | | =[* h = =!!!! #????????????????????? | | !!% |%h ! !^!! @ #????????????????????? | | ######### !==# ########## #????????????????????? | | ?????????????????????????? #????????????????????? | | ??????????????????????????? "???????????????????? | | ??????????????????????????? "#??????????????????? | | ???????????????????????????? "#??????????????????? | | ????????????????????????????#"#??????????????????? | | ?????????????????????????????##??????????????????? | | ?????????????????????????????????????????????????? | | ?????????????????????????????????????????????????? | | ?????????????????????????????????????????????????? | | ?????????????????????????????????????????????????? | | | | | | | | | | | | | | | | | | | | | | | | | | | +----------------------------------------------------+ Best States ------------- Heat Dissipation 50 Energy Generation 18 Energy Capacity 540 Matter Stores 300 Matter Capacity 300 Sight Range 16 Terrain Scan Density 10 Armor Coverage 600 Evasion (%) 50 Targeting Accuracy 8 Recoil Reduction 4 Offensive Hacking 20 Defensive Hacking 10 Relay Coupler Types 3 Relay Coupler Value 60 Item Schematics ----------------- Hcp. Storage Unit | -10/Materials | Hacked Plasma Cutter | -9/Materials | Hacked Med. Storage Unit | -9/Materials | Hacked Imp. Targeting Computer | -9/Materials | Extracted Beam Rifle | -9/Materials | Extracted Imp. Ion Engine | -9/Materials | Extracted Particle Gun | -9/Materials | Extracted EMP Blaster | -9/Materials | Extracted Arm. Treads | -8/Materials | Scanalyzed Robot Schematics ------------------ None Fabricated ------------ Nothing Repaired ---------- Arm. Treads | 11% | -8/Materials Studied --------- Arm. Treads | -7/Factory | Hacked Remote Datajack | -7/Factory | Hacked Rnf. Deuterium Engine | -7/Factory | Hacked Lightning Gun | -7/Factory | Hacked Shock Rifle | -7/Factory | Hacked Alien Tech Used ----------------- None Achievements -------------- Luggage Code Challenges ------------ None Game ------ Seed DefenseMultitargetingSteel Manual? 0 Play Time 01:50:55 Cumulative 83.3 hours Start 2026.02.13 @ 19:28:12 End 2026.04.03 @ 23:27:50 Sessions 5 Manual Loads 0 Difficulty Rogue Special Mode None Game No. 38 Rogue 38 Adventurer 0 Explorer 0 Win Type - Total 1 Types 1/0/0/0/0/0/0/0/0/0 Lore% 55 Gallery% 57 Achievement% 52 Wizard Run 0 Options --------- Layout 0 ASCII 0 Keyboard 0 Movement Mouse Keybinds 0 Fullscreen 1 Font 24/Smallcaps Map View 183x50 Zoom Use 0% Tactical HUD 1 Map Filters NONE Filters NONE Steam 1 RUN: 4d2dab94-be7e-44dc-a081-523f94e0bad7